[Event "Mitropa Cup Women 2024"]
[Site "Apolda"]
[Date "2024.02.22"]
[Round "8.2"]
[White "Georgescu, Lena"]
[Black "Demeter, Dorina"]
[Result "0-1"]
[ECO "C60"]
[WhiteElo "2268"]
[BlackElo "2271"]
[Annotator "TA"]
[PlyCount "164"]
[EventDate "2024.02.15"]
[EventType "team-tourn"]
[EventCountry "GER"]
[SourceTitle "playchess.com"]
[Source "ChessBase"]
[SourceQuality "1"]
[WhiteTeam "Switzerland"]
[BlackTeam "Hungary"]
[WhiteTeamCountry "SUI"]
[BlackTeamCountry "HUN"]
[TimeControl "40/5400+30:1800+30"]

{[%evp 61,164,92,89,42,134,111,191,152,220,189,331,218,212,215,220,224,239,237,230,224,246,172,172,175,175,139,239,246,254,248,278,243,284,275,268,268,230,197,205,205,277,170,168,0,218,108,265,329,408,391,333,0,274,0,299,0,0,0,0,0,0,0,0,0,0,0,0,0,0,0,11,26,115,0,122,0,0,-929,-854,-1529,-1529,-1410,-1274,-6452,-6380,-29957,-29954,-6175,-6120,-3004,-2598,-29976,-29977,-29972,-29973,-29978,-29979,-29979,-29980,-29985,-29986,-29986,-29987,-29987,-29974]} 1. e4 {[%emt 0:00:03]} e5 {[%emt 0:00:04]} 2. Nf3 {[%emt 0:00:03]} Nc6 {[%emt 0:00:08]} 3. Bb5 {[%emt 0:00:04]} Nge7 {[%emt 0:00:15]} 4. d4 {[%emt 0:00:21]} exd4 {[%emt 0:01:41]} 5. Nxd4 {[%emt 0:00:20]} Nxd4 {[%emt 0:06:38]} 6. Qxd4 {[%emt 0:00:10]} Ng6 {[%emt 0:04:35] C60: Spanische Partie.} 7. Nc3 {[%emt 0:06:46]} c6 {[%emt 0:00:53]} 8. Bc4 {[%emt 0:06:24]} b5 {[%emt 0:02:36]} 9. Be2 {[%emt 0:07:46]} Qb6 {[%emt 0:04:25]} 10. Qd3 {[%emt 0:05:06]} Bc5 $146 {[%emt 0:02:14]} ({Predecessor:} 10... Be7 11. O-O O-O 12. Kh1 d6 13. Be3 Qc7 14. a3 Be6 15. f4 f5 16. exf5 Bxf5 {1-0 Heinrich,J (2269)-Adury,A (2072) Wch U16 Montesilvano 2023 (11)}) 11. O-O {[%emt 0:01:05]} a5 {[%emt 0:12:03]} 12. Qg3 {[%emt 0:02:00]} O-O {[%emt 0:08:19]} 13. h4 {[%emt 0:08:57]} Qb8 {[%emt 0:05:52]} 14. Qxb8 {[%emt 0:01:17]} Rxb8 {[%emt 0:00:34]} 15. h5 {[%emt 0:00:38]} Ne5 {[%emt 0:01:08]} 16. a4 {[%emt 0:02:51]} b4 {[%emt 0:02:15]} 17. Nd1 {[%emt 0:05:50]} d6 {[%emt 0:04:47]} 18. Be3 {[%emt 0:00:43]} Ng4 {[%emt 0:11:52]} 19. Bxc5 {[%emt 0:02:50]} dxc5 {[%emt 0:00:25]} 20. f3 {[%emt 0:04:06]} Nf6 {[%emt 0:01:39]} 21. g4 {[%emt 0:07:51]} Rd8 {[%emt 0:02:01]} 22. Bc4 {[%emt 0:03:48]} Be6 {[%emt 0:04:55]} 23. Ne3 {[%emt 0:03:28]} Rd2 {[%emt 0:04:52]} 24. Rad1 {[%emt 0:05:40]} Rbd8 {[%emt 0:03:51]} 25. Rxd2 {[%emt 0:01:13]} Rxd2 {[%emt 0:00:02]} 26. Rf2 {[%emt 0:02:02]} Rd4 {[%emt 0:02:40]} 27. b3 {[%emt 0:01:37]} Bc8 {[%emt 0:01:17]} 28. Kf1 {[%emt 0:04:09]} Ne8 {[%emt 0:02:16]} 29. Ke1 {[%emt 0:02:00]} Nc7 {[%emt 0:01:52]} 30. Rd2 {[%emt 0:01:05]} Kf8 {[%emt 0:02:10]} 31. Ke2 {[%emt 0:04:04]} Ke7 {[%emt 0:03:32]} 32. Nd1 {[%emt 0:01:26]} (32. Rd1 $16) 32... Ne8 {[%emt 0:02:11]} (32... Ne6 $14) 33. Ke3 {[%emt 0:01:16]} Rd6 {[%emt 0:01:49]} (33... Rxd2 $16 34. Kxd2 h6) 34. Nb2 {[%emt 0:01:12]} f6 {[%emt 0:00:28]} (34... Rxd2 $16 {kämpft weiter.} 35. Kxd2 Nf6) 35. Nd3 {[%emt 0:01:00]} Nc7 {[%emt 0:00:57]} (35... Rd8 $142 36. h6 (36. Nxc5 Rxd2 37. Kxd2 Kd6 $18) 36... g5) 36. Nxc5 {[%emt 0:00:50]} Rxd2 {[%emt 0:00:02]} 37. Kxd2 {[%emt 0:00:06]} Kd6 {[%emt 0:00:12]} 38. Nd3 {[%emt 0:00:29]} Na8 {[%emt 0:00:51]} 39. Bg8 {[%emt 0:02:02]} h6 {[%emt 0:00:01]} 40. Ke3 {[%emt 0:01:06]} Nb6 {[%emt 0:01:19]} 41. Kd4 {[%emt 0:10:05]} Nd7 {[%emt 0:02:51]} 42. f4 {[%emt 0:05:53]} c5+ {[%emt 0:00:52]} 43. Ke3 {[%emt 0:00:06]} Nb6 {[%emt 0:01:35]} (43... Ba6 $16 {war angesagt.} 44. Bf7 Ke7) 44. e5+ $18 {[%emt 0:01:58]} fxe5 {[%emt 0:04:38]} 45. fxe5+ {[%emt 0:03:02]} (45. Nxe5 Ke7 46. Ke4 Kd8 $11) 45... Kc6 {[%emt 0:01:01]} 46. Kf3 {[%emt 0:05:24]} Nd5 {[%emt 0:05:11]} 47. Bf7 {[%emt 0:04:49]} Nb6 {[%emt 0:06:26]} 48. Nb2 {[%emt 0:01:23]} Kd7 {[%emt 0:03:40]} 49. Kf4 {[%emt 0:02:29]} Ke7 {[%emt 0:00:14]} 50. Bc4 {[%emt 0:00:29]} Bd7 {[%emt 0:01:24]} 51. Bg8 {[%emt 0:01:35]} Kf8 {[%emt 0:00:53]} 52. Bc4 {[%emt 0:00:49]} (52. e6 $142 Bc6 53. Bh7) 52... Ke7 $18 {[%emt 0:00:08]} 53. g5 {[%emt 0:01:25]} (53. Bb5 $18 {ist viel giftiger. Schwarz muss nun Bxd7 beachten.} Be6 54. Nd3) 53... Be8 $2 {[%emt 0:01:23] [#]} (53... hxg5+ $16 54. Kxg5 Bc6) 54. g6 $1 $18 {[%emt 0:00:23]} Bd7 {[%emt 0:00:16]} 55. Bf7 {[%emt 0:00:56]} Bc6 {[%emt 0:01:39]} 56. Bc4 {[%emt 0:00:15]} Bd7 $1 {[%emt 0:00:06]} 57. Bf7 {[%emt 0:00:03]} Bc6 $1 {[%emt 0:00:03]} 58. Nc4 $2 {[%emt 0:01:08]} (58. Bg8 $18) 58... Nxc4 $11 {[%emt 0:00:29]} 59. Bxc4 {[%emt 0:00:04]} Bg2 {[%emt 0:00:35]} 60. Bd3 {[%emt 0:00:48]} Ke6 {[%emt 0:01:24]} 61. Ba6 {[%emt 0:01:05]} Ke7 {[%emt 0:00:15]} 62. Bc8 {[%emt 0:00:27]} Bd5 {[%emt 0:01:11]} 63. Ba6 {[%emt 0:00:38]} Bg2 {[%emt 0:00:02]} 64. Be2 {[%emt 0:01:18]} Ke6 {[%emt 0:00:09]} 65. Bg4+ {[%emt 0:00:44]} Ke7 {[%emt 0:00:01]} 66. Ke3 {[%emt 0:00:42]} Bb7 {[%emt 0:02:03]} (66... Bc6 $11) 67. Kd2 {[%emt 0:00:24]} (67. Bh3 $16) 67... Bd5 {[%emt 0:00:30]} (67... Be4 $11) 68. Kc1 {[%emt 0:01:06]} ({Weiss braucht} 68. Kd3 $16) 68... Be6 $11 {[%emt 0:00:59]} 69. Bf3 $2 {[%emt 0:00:25][%mdl 8192]} (69. Bxe6 $11 Kxe6 70. Kd2 Kxe5 71. Kd3) 69... Bf5 $19 {[%emt 0:02:06]} 70. Kd2 {[%emt 0:00:39]} Ke6 {[%emt 0:00:06]} 71. c3 {[%emt 0:00:34]} Kxe5 {[%emt 0:00:19]} 72. cxb4 {[%emt 0:01:40]} cxb4 {[%emt 0:00:08]} 73. Bd1 {[%emt 0:00:00]} Kd4 {[%emt 0:00:09]} 74. Bf3 {[%emt 0:00:00]} Be6 {[%emt 0:00:29]} 75. Bd1 {[%emt 0:00:00]} Bd5 {[%emt 0:00:07]} 76. Kc2 {[%emt 0:00:00]} Ke3 {[%emt 0:00:11]} 77. Bg4 {[%emt 0:00:14]} Be4+ {[%emt 0:00:09]} 78. Kb2 {[%emt 0:00:10]} Kd2 {[%emt 0:00:08]} 79. Ka2 {[%emt 0:01:06]} Kc3 {[%emt 0:00:14]} 80. Ka1 {[%emt 0:00:35]} Kxb3 {[%emt 0:00:13]} 81. Bf5 {[%emt 0:00:07]} Bf3 {[%emt 0:00:29]} 82. Be4 {[%emt 0:00:13]} Bxh5 {[%emt 0:00:08]} 0-1

[Event "Mitropa Cup Women 2024"]
[Site "Apolda"]
[Date "2024.02.22"]
[Round "8.3"]
[White "Ivan-Gal, Hanna Krisztina"]
[Black "Hryzlova, Sofiia"]
[Result "1/2-1/2"]
[ECO "C11"]
[WhiteElo "2191"]
[BlackElo "2196"]
[Annotator "RC"]
[PlyCount "53"]
[EventDate "2024.02.15"]
[EventType "team-tourn"]
[EventCountry "GER"]
[SourceTitle "playchess.com"]
[Source "ChessBase"]
[SourceQuality "1"]
[WhiteTeam "Hungary"]
[BlackTeam "Switzerland"]
[WhiteTeamCountry "HUN"]
[BlackTeamCountry "SUI"]
[TimeControl "40/5400+30:1800+30"]

1. e4 {[%emt 0:00:02]} e6 {[%emt 0:00:06]} 2. d4 {[%emt 0:00:07]} d5 {[%emt 0:00:06]} 3. Nc3 {[%emt 0:00:06]} Nf6 {[%emt 0:00:06]} 4. e5 {[%emt 0:00:07]} Nfd7 {[%emt 0:00:08]} 5. f4 {[%emt 0:00:10]} c5 {[%emt 0:00:06]} 6. Nf3 {[%emt 0:00:08]} Nc6 {[%emt 0:00:08]} 7. Be3 {[%emt 0:00:11]} a6 {[%emt 0:00:07]} 8. a3 {[%emt 0:00:51]} cxd4 {[%emt 0:00:33]} 9. Nxd4 {[%emt 0:00:21]} Bc5 {[%emt 0:00:09]} 10. Qd2 {[%emt 0:00:40]} g5 {[%emt 0:00:14]} 11. Nxc6 {[%emt 0:00:42]} Bxe3 {[%emt 0:04:46]} 12. Qxe3 {[%emt 0:04:06]} bxc6 {[%emt 0:00:10]} 13. O-O-O {[%emt 0:19:02]} gxf4 {[%emt 0:03:25]} 14. Qxf4 {[%emt 0:00:18]} Qc7 {[%emt 0:00:08]} 15. Re1 {[%emt 0:02:20]} Bb7 {[%emt 0:00:18]} 16. Bd3 {[%emt 0:02:32]} c5 {[%emt 0:28:35]} 17. Rhf1 {[%emt 0:04:57]} Rf8 {[%emt 0:00:51]} 18. Qg5 {[%emt 0:18:18]} Qd8 {[%emt 0:12:08]} 19. Qg7 {[%emt 0:05:07]} Qh4 {[%emt 0:03:16]} 20. g3 {[%emt 0:09:56]} Qh5 {[%emt 0:02:17]} 21. h4 {[%emt 0:16:57]} h6 {[%emt 0:04:35]} 22. Rh1 {[%emt 0:04:29]} Qf3 {[%emt 0:00:53]} 23. Rhf1 {[%emt 0:00:27]} Qh5 {[%emt 0:00:08]} 24. Rh1 {[%emt 0:00:05]} Qf3 {[%emt 0:00:06]} 25. Rhf1 {[%emt 0:00:06]} Qh5 {[%emt 0:00:05]} 26. Rh1 {[%emt 0:00:19]} Qf3 {[%emt 0:00:07]} 27. Rhf1 {[%emt 0:11:36]} 1/2-1/2

[Event "Mitropa Cup Women 2024"]
[Site "Apolda"]
[Date "2024.02.22"]
[Round "8.4"]
[White "Manko, Mariia"]
[Black "Karacsonyi, Kata"]
[Result "0-1"]
[ECO "E04"]
[WhiteElo "2128"]
[BlackElo "2087"]
[Annotator "RC"]
[PlyCount "106"]
[EventDate "2024.02.15"]
[EventType "team-tourn"]
[EventCountry "GER"]
[SourceTitle "playchess.com"]
[Source "ChessBase"]
[SourceQuality "1"]
[WhiteTeam "Switzerland"]
[BlackTeam "Hungary"]
[WhiteTeamCountry "SUI"]
[BlackTeamCountry "HUN"]
[TimeControl "40/5400+30:1800+30"]

1. d4 {[%emt 0:00:02]} Nf6 {[%emt 0:00:10]} 2. c4 {[%emt 0:00:06]} e6 {[%emt 0:00:09]} 3. g3 {[%emt 0:00:07]} d5 {[%emt 0:00:09]} 4. Bg2 {[%emt 0:00:06]} dxc4 {[%emt 0:00:49]} 5. Nf3 {[%emt 0:00:07]} Nbd7 {[%emt 0:00:26]} 6. O-O {[%emt 0:04:26]} c6 {[%emt 0:00:20]} 7. a4 {[%emt 0:04:56]} a5 {[%emt 0:00:14]} 8. Qc2 {[%emt 0:01:52]} b5 {[%emt 0:00:41]} 9. Ne5 {[%emt 0:11:01]} Nxe5 {[%emt 0:00:40]} 10. dxe5 {[%emt 0:00:07]} Nd5 {[%emt 0:00:10]} 11. axb5 {[%emt 0:00:37]} cxb5 {[%emt 0:00:07]} 12. Nc3 {[%emt 0:13:16]} Qb6 {[%emt 0:00:25]} 13. Nxd5 {[%emt 0:05:30]} exd5 {[%emt 0:00:29]} 14. Bxd5 {[%emt 0:01:37]} Ra7 {[%emt 0:00:10]} 15. Qe4 {[%emt 0:04:36]} Bc5 {[%emt 0:00:28]} 16. Bc6+ {[%emt 0:04:04]} Bd7 {[%emt 0:00:12]} 17. Bxd7+ {[%emt 0:01:18]} Rxd7 {[%emt 0:00:10]} 18. Qa8+ {[%emt 0:02:44]} Rd8 {[%emt 0:00:23]} 19. Qxa5 {[%emt 0:00:34]} Qc6 {[%emt 0:00:50]} 20. Qa6 {[%emt 0:14:46]} Qxa6 {[%emt 0:00:18]} 21. Rxa6 {[%emt 0:00:10]} h6 {[%emt 0:00:10]} 22. Ra5 {[%emt 0:03:04]} Rb8 {[%emt 0:06:24]} 23. e6 {[%emt 0:06:07]} fxe6 {[%emt 0:20:12]} 24. Bf4 {[%emt 0:01:19]} Bb6 {[%emt 0:03:12]} 25. Ra6 {[%emt 0:03:13]} Rb7 {[%emt 0:00:15]} 26. Ra8+ {[%emt 0:01:35]} Bd8 {[%emt 0:00:08]} 27. Rd1 {[%emt 0:00:13]} Rd7 {[%emt 0:03:31]} 28. Rxd7 {[%emt 0:00:20]} Kxd7 {[%emt 0:00:05]} 29. Be5 {[%emt 0:02:08]} Bf6 {[%emt 0:30:32]} 30. Ra7+ {[%emt 0:01:06]} Kc6 {[%emt 0:00:49]} 31. Ra6+ {[%emt 0:01:27]} Kd5 {[%emt 0:07:15]} 32. Bxf6 {[%emt 0:01:13]} gxf6 {[%emt 0:00:11]} 33. Kf1 {[%emt 0:03:31]} Kc5 {[%emt 0:08:55]} 34. Ke1 {[%emt 0:01:20]} Kb4 {[%emt 0:03:23]} 35. Ra3 {[%emt 0:06:55]} Rd8 {[%emt 0:00:41]} 36. h4 {[%emt 0:00:41]} h5 {[%emt 0:01:12]} 37. Rf3 {[%emt 0:00:21]} e5 {[%emt 0:04:47]} 38. Re3 {[%emt 0:00:42]} e4 {[%emt 0:04:04]} 39. Ra3 {[%emt 0:01:38]} f5 {[%emt 0:01:15]} 40. f3 {[%emt 0:00:44]} Rd7 {[%emt 0:04:14]} 41. Re3 {[%emt 0:02:07]} Rd4 {[%emt 0:09:32]} 42. Ra3 {[%emt 0:03:38]} Kc5 {[%emt 0:06:15]} 43. fxe4 {[%emt 0:03:09]} fxe4 {[%emt 0:00:47]} 44. Re3 {[%emt 0:10:11]} b4 {[%emt 0:00:34]} 45. g4 {[%emt 0:00:37]} hxg4 {[%emt 0:01:11]} 46. h5 {[%emt 0:00:35]} b3 {[%emt 0:03:53]} 47. h6 {[%emt 0:05:28]} Rd6 {[%emt 0:00:39]} 48. Rxe4 {[%emt 0:03:01]} Rxh6 {[%emt 0:00:06]} 49. Rxg4 {[%emt 0:00:13]} Rh1+ {[%emt 0:06:10]} 50. Kd2 {[%emt 0:00:18]} Rb1 {[%emt 0:00:06]} 51. e4 {[%emt 0:00:15]} Rxb2+ {[%emt 0:00:08]} 52. Kc1 {[%emt 0:00:12]} Re2 {[%emt 0:00:21]} 53. Rh4 {[%emt 0:01:27]} Kb4 {[%emt 0:00:57]} 0-1

[Event "Mitropa Cup Women 2024"]
[Site "Apolda"]
[Date "2024.02.22"]
[Round "8.5"]
[White "Hagarova, Zuzana"]
[Black "Polterauer, Chiara"]
[Result "1/2-1/2"]
[ECO "C28"]
[WhiteElo "2280"]
[BlackElo "2189"]
[Annotator "RC"]
[PlyCount "37"]
[EventDate "2024.02.15"]
[EventType "team-tourn"]
[EventCountry "GER"]
[SourceTitle "playchess.com"]
[Source "ChessBase"]
[SourceQuality "1"]
[WhiteTeam "Slovakia"]
[BlackTeam "Austria"]
[WhiteTeamCountry "SVK"]
[BlackTeamCountry "AUT"]
[TimeControl "40/5400+30:1800+30"]

1. e4 {[%emt 0:00:06]} e5 {[%emt 0:00:05]} 2. Bc4 {[%emt 0:00:20]} Nc6 {[%emt 0:00:21]} 3. Nc3 {[%emt 0:00:34]} Nf6 {[%emt 0:01:41]} 4. d3 {[%emt 0:00:44]} Bc5 {[%emt 0:00:20]} 5. f4 {[%emt 0:00:32]} h5 {[%emt 0:00:28]} 6. Nf3 {[%emt 0:03:00]} Ng4 {[%emt 0:00:48]} 7. Qe2 {[%emt 0:18:07]} Nd4 {[%emt 0:01:27]} 8. Nxd4 {[%emt 0:01:27]} exd4 {[%emt 0:00:16]} 9. Nd1 {[%emt 0:06:02]} Qh4+ {[%emt 0:01:12]} 10. Kf1 {[%emt 0:12:06]} Nxh2+ {[%emt 0:02:06]} 11. Kg1 {[%emt 0:05:07]} Qg4 {[%emt 0:00:53]} 12. Qf2 {[%emt 0:01:39]} Qxd1+ {[%emt 0:00:35]} 13. Kxh2 {[%emt 0:00:08]} Qg4 {[%emt 0:00:11]} 14. c3 {[%emt 0:07:02]} dxc3 {[%emt 0:32:28]} 15. Qxc5 {[%emt 0:00:59]} Qh4+ {[%emt 0:00:06]} 16. Kg1 {[%emt 0:00:06]} Qe1+ {[%emt 0:00:05]} 17. Kh2 {[%emt 0:00:03]} Qh4+ {[%emt 0:00:06]} 18. Kg1 {[%emt 0:00:06]} Qe1+ {[%emt 0:00:07]} 19. Kh2 {[%emt 0:00:03]} 1/2-1/2

[Event "Mitropa Cup Women 2024"]
[Site "Apolda"]
[Date "2024.02.22"]
[Round "8.6"]
[White "Hapala, Elisabeth"]
[Black "Walter, Ema"]
[Result "0-1"]
[ECO "C60"]
[WhiteElo "2001"]
[BlackElo "2124"]
[Annotator "NA RC"]
[PlyCount "60"]
[EventDate "2024.02.15"]
[EventType "team-tourn"]
[EventCountry "GER"]
[SourceTitle "playchess.com"]
[Source "ChessBase"]
[SourceQuality "1"]
[WhiteTeam "Austria"]
[BlackTeam "Slovakia"]
[WhiteTeamCountry "AUT"]
[BlackTeamCountry "SVK"]
[TimeControl "40/5400+30:1800+30"]

1. e4 {[%emt 0:00:01]} e5 {[%emt 0:00:05]} 2. Nf3 {[%emt 0:00:03]} Nc6 {[%emt 0:00:06]} 3. Bb5 {[%emt 0:00:03]} Nge7 {[%emt 0:00:04]} 4. Nc3 {[%emt 0:00:05]} Ng6 {[%emt 0:00:04]} 5. d4 {[%emt 0:00:06]} exd4 {[%emt 0:00:05]} 6. Nxd4 {[%emt 0:00:05]} Nxd4 {[%emt 0:00:05]} 7. Qxd4 {[%emt 0:00:04]} c6 {[%emt 0:00:03]} 8. Be2 {[%emt 0:00:06]} Qb6 {[%emt 0:00:04]} 9. Qd3 {[%emt 0:00:05]} Be7 {[%emt 0:00:09]} 10. O-O {[%emt 0:00:10]} O-O {[%emt 0:00:10]} 11. a4 {[%emt 0:00:12]} d6 {[%emt 0:00:04]} 12. a5 {[%emt 0:00:05]} Qc7 {[%emt 0:00:03]} 13. f4 {[%emt 0:00:31]} Bd7 {[%emt 0:00:04]} 14. Be3 {[%emt 0:01:29]} Rfe8 {[%emt 0:00:22]} 15. g3 {[%emt 0:05:34]} b5 {[%emt 0:04:01]} 16. b4 {[%emt 0:00:57]} Rad8 {[%emt 0:17:33]} 17. h4 {[%emt 0:12:32]} d5 {[%emt 0:10:25]} 18. exd5 {[%emt 0:10:59]} Bxb4 {[%emt 0:00:32]} 19. h5 {[%emt 0:00:20]} Ne7 {[%emt 0:12:17]} 20. d6 {[%emt 0:23:34]} Bxd6 {[%emt 0:09:10]} 21. Ne4 {[%emt 0:12:15]} Bf5 {[%emt 0:12:41]} 22. Nxd6 {[%emt 0:10:48]} Rxd6 {[%emt 0:00:11]} 23. Qa3 {[%emt 0:00:51]} b4 {[%emt 0:00:25]} 24. Qb2 {[%emt 0:10:22]} Re6 {[%emt 0:10:42]} 25. Bd4 {[%emt 0:02:11]} Rxe2 {[%emt 0:00:24]} 26. Bxg7 {[%emt 0:00:05]} Qd6 {[%emt 0:01:34]} 27. Rfd1 {[%emt 0:07:28]} Qc5+ {[%emt 0:00:59]} 28. Bd4 {[%emt 0:00:16]} Qd5 {[%emt 0:04:26]} 29. Bf2 {[%emt 0:00:34]} Qf3 {[%emt 0:00:06]} 30. Rf1 {[%emt 0:01:21]} Be4 {[%emt 0:00:07]} 0-1

[Event "Mitropa Cup Women 2024"]
[Site "Apolda"]
[Date "2024.02.22"]
[Round "8.7"]
[White "Sevcikova, Lucia"]
[Black "Mayrhuber, Nikola"]
[Result "0-1"]
[ECO "E32"]
[WhiteElo "2007"]
[BlackElo "2009"]
[Annotator "NA"]
[PlyCount "80"]
[EventDate "2024.02.15"]
[EventType "team-tourn"]
[EventCountry "GER"]
[SourceTitle "playchess.com"]
[Source "ChessBase"]
[SourceQuality "1"]
[WhiteTeam "Slovakia"]
[BlackTeam "Austria"]
[WhiteTeamCountry "SVK"]
[BlackTeamCountry "AUT"]
[TimeControl "40/5400+30:1800+30"]

1. d4 {[%emt 0:00:04]} Nf6 {[%emt 0:00:03]} 2. c4 {[%emt 0:00:03]} e6 {[%emt 0:00:03]} 3. Nc3 {[%emt 0:00:03]} Bb4 {[%emt 0:00:04]} 4. Qc2 {[%emt 0:00:05]} O-O {[%emt 0:00:05]} 5. a3 {[%emt 0:00:04]} Bxc3+ {[%emt 0:00:04]} 6. Qxc3 {[%emt 0:00:04]} b6 {[%emt 0:00:05]} 7. Bg5 {[%emt 0:00:15]} Bb7 {[%emt 0:00:06]} 8. f3 {[%emt 0:00:06]} d5 {[%emt 0:00:34]} 9. cxd5 {[%emt 0:00:34]} exd5 {[%emt 0:09:19]} 10. e3 {[%emt 0:00:19]} Nbd7 {[%emt 0:01:40]} 11. Bb5 {[%emt 0:06:29]} c6 {[%emt 0:08:19]} 12. Ba4 {[%emt 0:01:02]} Re8 {[%emt 0:02:39]} 13. Bh4 {[%emt 0:10:12]} Qe7 {[%emt 0:03:04]} 14. Bf2 {[%emt 0:00:28]} b5 {[%emt 0:02:49]} 15. Bc2 {[%emt 0:09:58]} a5 {[%emt 0:01:15]} 16. Ne2 {[%emt 0:13:49]} b4 {[%emt 0:02:31]} 17. Qb3 {[%emt 0:00:49]} c5 {[%emt 0:08:20]} 18. Bb1 {[%emt 0:05:07]} Ba6 {[%emt 0:03:39]} 19. dxc5 {[%emt 0:07:29]} Nxc5 {[%emt 0:04:48]} 20. Qd1 {[%emt 0:00:15]} Bxe2 {[%emt 0:02:52]} 21. Kxe2 {[%emt 0:03:17]} Qe5 {[%emt 0:10:11]} 22. axb4 {[%emt 0:10:55]} Qxb2+ {[%emt 0:02:07]} 23. Bc2 {[%emt 0:01:12]} axb4 {[%emt 0:04:15]} 24. Rb1 {[%emt 0:03:19]} Qc3 {[%emt 0:00:53]} 25. Kf1 {[%emt 0:07:22]} Ra2 {[%emt 0:03:09]} 26. Rc1 {[%emt 0:05:58]} Qc4+ {[%emt 0:03:19]} 27. Kg1 {[%emt 0:00:42]} Qb5 {[%emt 0:01:03]} 28. Bb1 {[%emt 0:02:22]} Ra3 {[%emt 0:04:44]} 29. Qc2 {[%emt 0:05:20]} Rc3 {[%emt 0:06:50]} 30. Qd1 {[%emt 0:01:01]} Nb3 {[%emt 0:06:11]} 31. Rxc3 {[%emt 0:00:55]} bxc3 {[%emt 0:00:01]} 32. Bc2 {[%emt 0:02:18]} Nd2 {[%emt 0:00:09]} 33. g4 {[%emt 0:01:43]} Ra8 {[%emt 0:04:16]} 34. Kg2 {[%emt 0:01:22]} Ra2 {[%emt 0:00:26]} 35. g5 {[%emt 0:01:04]} Nd7 {[%emt 0:00:30]} 36. Bf5 {[%emt 0:01:23]} Ne5 {[%emt 0:00:26]} 37. f4 {[%emt 0:00:54]} Nd3 {[%emt 0:00:23]} 38. Qe2 {[%emt 0:00:32]} Nxf4+ {[%emt 0:00:23]} 39. exf4 {[%emt 0:00:03]} Qxe2 {[%emt 0:00:11]} 40. Re1 {[%emt 0:00:13]} Qf3+ {[%emt 0:01:05]} 0-1

[Event "Mitropa Cup Women 2024"]
[Site "Apolda"]
[Date "2024.02.22"]
[Round "8.8"]
[White "Deak-Sala, Emilia"]
[Black "Sekova, Olivia"]
[Result "1-0"]
[ECO "B61"]
[WhiteElo "1843"]
[BlackElo "2054"]
[Annotator "RC"]
[PlyCount "119"]
[EventDate "2024.02.15"]
[EventType "team-tourn"]
[EventCountry "GER"]
[SourceTitle "playchess.com"]
[Source "ChessBase"]
[SourceQuality "1"]
[WhiteTeam "Austria"]
[BlackTeam "Slovakia"]
[WhiteTeamCountry "AUT"]
[BlackTeamCountry "SVK"]
[TimeControl "40/5400+30:1800+30"]

1. e4 {[%emt 0:00:04]} c5 {[%emt 0:00:15]} 2. Nf3 {[%emt 0:00:05]} d6 {[%emt 0:00:06]} 3. d4 {[%emt 0:00:06]} cxd4 {[%emt 0:00:05]} 4. Nxd4 {[%emt 0:00:02]} Nf6 {[%emt 0:00:11]} 5. Nc3 {[%emt 0:00:04]} Nc6 {[%emt 0:00:05]} 6. Bg5 {[%emt 0:00:07]} Bd7 {[%emt 0:00:16]} 7. Qd2 {[%emt 0:00:11]} Rc8 {[%emt 0:00:17]} 8. O-O-O {[%emt 0:00:06]} Nxd4 {[%emt 0:00:06]} 9. Qxd4 {[%emt 0:00:04]} Qa5 {[%emt 0:00:10]} 10. f4 {[%emt 0:00:16]} h6 {[%emt 0:00:11]} 11. Bh4 {[%emt 0:00:56]} g5 {[%emt 0:00:21]} 12. e5 {[%emt 0:10:41]} Bg7 {[%emt 0:00:43]} 13. Bf2 {[%emt 0:02:48]} Ng4 {[%emt 0:06:57]} 14. Qxa7 {[%emt 0:01:23]} Qxa7 {[%emt 0:00:05]} 15. Bxa7 {[%emt 0:00:02]} gxf4 {[%emt 0:04:12]} 16. exd6 {[%emt 0:03:25]} Bxc3 {[%emt 0:17:16]} 17. bxc3 {[%emt 0:00:07]} e5 {[%emt 0:01:52]} 18. h3 {[%emt 0:03:31]} Ra8 {[%emt 0:02:13]} 19. Bg1 {[%emt 0:13:10]} Ne3 {[%emt 0:07:53]} 20. Bxe3 {[%emt 0:00:28]} fxe3 {[%emt 0:00:05]} 21. Bc4 {[%emt 0:18:15]} Rc8 {[%emt 0:10:34]} 22. Bb3 {[%emt 0:02:17]} e2 {[%emt 0:06:23]} 23. Rd2 {[%emt 0:06:45]} Rxc3 {[%emt 0:00:20]} 24. Rxe2 {[%emt 0:00:21]} f6 {[%emt 0:01:02]} 25. Kb2 {[%emt 0:07:48]} Rg3 {[%emt 0:01:21]} 26. Rf1 {[%emt 0:12:14]} Rf8 {[%emt 0:01:35]} 27. Bd5 {[%emt 0:00:08]} Bc6 {[%emt 0:08:20]} 28. Bxc6+ {[%emt 0:00:17]} bxc6 {[%emt 0:00:05]} 29. Ref2 {[%emt 0:02:11]} Rg6 {[%emt 0:00:13]} 30. g4 {[%emt 0:09:35]} Kd7 {[%emt 0:03:36]} 31. Rd2 {[%emt 0:00:30]} Rb8+ {[%emt 0:02:29]} 32. Kc3 {[%emt 0:00:18]} Ra8 {[%emt 0:00:11]} 33. Kb3 {[%emt 0:00:48]} Rb8+ {[%emt 0:00:32]} 34. Kc4 {[%emt 0:00:41]} Ra8 {[%emt 0:00:09]} 35. c3 {[%emt 0:00:38]} Ra4+ {[%emt 0:00:37]} 36. Kb3 {[%emt 0:04:28]} Ra8 {[%emt 0:03:18]} 37. a4 {[%emt 0:01:03]} c5 {[%emt 0:02:35]} 38. Ka3 {[%emt 0:02:16]} Ra6 {[%emt 0:01:27]} 39. Rb1 {[%emt 0:00:14]} Rxd6 {[%emt 0:01:03]} 40. Rxd6+ {[%emt 0:01:06]} Kxd6 {[%emt 0:00:05]} 41. c4 {[%emt 0:03:21]} e4 {[%emt 0:06:25]} 42. Kb3 {[%emt 0:12:27]} Ke5 {[%emt 0:08:16]} 43. Kc3 {[%emt 0:00:18]} Kf4 {[%emt 0:00:58]} 44. a5 {[%emt 0:08:26]} Kg3 {[%emt 0:10:25]} 45. a6 {[%emt 0:02:29]} f5 {[%emt 0:04:18]} 46. Ra1 {[%emt 0:00:23]} Rg8 {[%emt 0:09:10]} 47. gxf5 {[%emt 0:00:41]} e3 {[%emt 0:00:51]} 48. a7 {[%emt 0:02:13]} Ra8 {[%emt 0:00:28]} 49. Kd3 {[%emt 0:03:47]} Kf3 {[%emt 0:00:33]} 50. Rf1+ {[%emt 0:00:45]} Kg2 {[%emt 0:00:07]} 51. Rf4 {[%emt 0:00:47]} Rxa7 {[%emt 0:01:56]} 52. Kxe3 {[%emt 0:00:10]} Kxh3 {[%emt 0:00:30]} 53. f6 {[%emt 0:00:26]} Rf7 {[%emt 0:00:11]} 54. Ke4 {[%emt 0:00:40]} Rf8 {[%emt 0:04:06]} 55. f7 {[%emt 0:00:29]} Kg3 {[%emt 0:00:22]} 56. Rf6 {[%emt 0:00:50]} h5 {[%emt 0:00:48]} 57. Ke5 {[%emt 0:00:15]} h4 {[%emt 0:00:26]} 58. Ke6 {[%emt 0:00:03]} h3 {[%emt 0:00:12]} 59. Ke7 {[%emt 0:00:05]} h2 {[%emt 0:00:08]} 60. Rh6 {[%emt 0:00:20]} 1-0